bitfinex-derivatives/quotes_ETHF0:USTF0_20250926
["timestamp","ask_amount","ask_price","bid_price","bid_amount"]
[1758911034250,1.24255217,4065.8,4065.7,0.3196]
[1758911034749,2.72461484,4065.8,4065.7,0.3196]
[1758911035347,2.72461484,4065.8,4065.7,0.5406]
[1758911037449,0.44236,4065.7,4065.6,0.3214888]
[1758911037650,0.98656217,4065.7,4065.6,0.0018888]
[1758911037945,0.98656217,4065.7,4065.6,0.3214888]
[1758911039951,0.44241,4065.3,4065.2,0.3196]
[1758911040144,5.93247484,4065.3,4065.2,0.3196]
[1758911040341,0.65843,4065.1,4065.0,0.1277]
[1758911040550,0.88338,4064.6,4064.5,3.7758]
[1758911040756,3.16564484,4064.6,4064.5,3.7758]
[1758911040948,3.16564484,4064.6,4064.5,3.77858806]
[1758911041349,3.16564484,4064.6,4064.5,0.57078806]
[1758911042262,3.33134484,4064.6,4064.5,0.00278806]
[1758911042560,3.33134484,4064.6,4064.5,0.32238806]
[1758911042868,3.16564484,4064.6,4064.5,0.67558806]
[1758911043362,2.90964484,4064.6,4064.5,1.33287806]
[1758911043565,3.16564484,4064.6,4064.5,0.89038806]
[1758911044165,2.90964484,4064.6,4064.5,0.89038806]
[1758911044369,3.16564484,4064.6,4064.5,0.00278806]
[1758911044679,0.65859,4063.6,4063.5,1.3302]
[1758911044869,2.24226484,4063.6,4063.5,1.3302]
[1758911045068,2.68485484,4063.6,4063.5,1.3302]
[1758911045271,0.54420217,4063.6,4063.5,1.3302]
[1758911045478,0.256,4063.7,4063.6,0.87839]
[1758911045771,1.92455267,4064.6,4064.5,1.02259]
[1758911045974,2.03296131,4064.6,4064.5,1.32799]
[1758911046283,2.73144131,4064.6,4064.5,0.8855]
[1758911046666,2.73144131,4064.6,4064.5,1.32799]
[1758911046872,2.73144131,4064.6,4064.5,0.8855]
[1758911047278,2.73144131,4064.6,4064.5,1.32799]
[1758911047469,2.73144131,4064.6,4064.5,0.8855]
[1758911047871,3.15734131,4064.6,4064.5,0.6649]
[1758911048362,3.32304131,4064.6,4064.5,0.4404]
[1758911048567,3.32304131,4064.6,4064.5,0.3054]
[1758911048878,1.03414,4064.1,4064.0,0.4376]
[1758911049069,3.31994476,4064.1,4064.0,0.3054]
[1758911049879,3.31994476,4064.1,4063.5,0.66385794]
[1758911049880,0.86849,4063.6,4063.5,0.66385794]
[1758911050076,3.15431197,4063.6,4063.5,0.66385794]
[1758911050277,2.72841197,4063.6,4063.5,1.32705794]
[1758911050674,2.72841197,4063.6,4063.5,0.88445794]
[1758911050980,2.72841197,4063.6,4063.5,1.32705794]
[1758911051180,2.28582197,4063.6,4063.5,1.32705794]
[1758911051680,2.72841197,4063.6,4063.5,1.32705794]
[1758911052072,2.02982197,4063.6,4063.5,1.32705794]
[1758911052269,0.44257,4063.8,4063.7,0.44258]
[1758911052468,0.99023036,4063.8,4063.7,0.86298]
[1758911052773,1.24623036,4063.8,4063.7,1.19038]
[1758911052968,0.54766036,4063.8,4063.7,1.19038]
[1758911053573,1.10625,4064.5,4063.7,1.19038]
[1758911053574,0.44252,4064.3,4064.2,0.86292]
[1758911053878,1.2460999,4064.3,4064.2,1.19032]
[1758911054477,0.5475799,4064.3,4064.2,1.19032]
[1758911054678,0.5475799,4064.3,4064.2,6.19032]
[1758911055571,5.13234267,4064.7,4064.5,0.44249]
[1758911055775,1.24914909,4064.6,4064.5,1.31949]
[1758911055976,0.99314909,4064.6,4064.5,1.31949]
[1758911056681,1.21194909,4064.6,4064.5,0.877]
[1758911056880,1.46794909,4064.6,4064.5,0.877]
[1758911057074,1.46794909,4064.6,4064.5,1.3195]
[1758911057383,1.02545909,4064.6,4064.5,1.3195]
[1758911057686,0.80665909,4064.6,4064.5,1.3195]
[1758911057875,0.55065909,4064.6,4064.5,6.3195]
[1758911058474,0.00315655,4064.6,4064.5,6.3195]
[1758911058777,0.00315655,4064.6,4064.5,9.5273]
[1758911059577,0.00315655,4064.6,4064.5,11.2063953]
[1758911059771,0.00315655,4064.6,4064.5,11.00936267]
[1758911059972,0.00315655,4064.6,4064.5,11.26536267]
[1758911062484,0.0246,4064.8,4064.7,1.19028]
[1758911063277,0.0246,4064.8,4064.7,1.44628]
[1758911063482,0.02685758,4064.8,4064.7,1.44628]
[1758911063678,0.46931758,4064.8,4064.7,1.44628]
[1758911063982,1.45809928,4064.8,4064.7,1.19028]
[1758911064183,1.45809928,4064.8,4064.7,0.7478]
[1758911064374,1.45809928,4064.8,4064.7,0.5427]
[1758911064575,2.94016195,4064.8,4064.7,0.5427]
[1758911065884,3.10896195,4064.8,4064.7,0.3274]
[1758911066081,0.57503928,4064.8,4064.7,1.19028]
[1758911066391,0.02685758,4064.8,4064.7,7.92834267]
[1758911066685,0.00225758,4064.8,4064.7,7.92834267]
[1758911071085,0.00225758,4064.8,4064.7,6.44628]
[1758911072290,1.92492025,4064.8,4064.7,1.19028]
[1758911072983,2.36739025,4064.8,4064.7,1.19028]
[1758911073189,2.91578467,4064.8,4064.7,1.19028]
[1758911073705,2.47331467,4064.8,4064.7,1.19028]
[1758911074001,2.91578467,4064.8,4064.7,1.19028]
[1758911074389,2.03271467,4064.8,4064.7,1.19028]
[1758911074598,2.47518467,4064.8,4064.7,1.19028]
[1758911074794,1.72546267,4065.0,4064.9,0.65775]
[1758911075000,1.72546267,4065.0,4064.9,1.19025]
[1758911075296,1.05185,4064.9,4064.8,0.16617572]
[1758911075797,1.0538459,4064.9,4064.8,0.16617572]
[1758911076192,0.88309,4064.6,4064.5,4.3222]
[1758911076498,2.19897695,4064.6,4064.5,4.3222]
[1758911078399,2.19897695,4064.6,4064.5,3.8797]
[1758911078596,2.36777695,4064.6,4064.5,3.6644]
[1758911078797,2.36777695,4064.6,4064.5,0.3274]
[1758911079695,0.88312,4064.3,4064.2,0.5427]
[1758911079896,2.36518267,4064.3,4064.2,0.5427]
[1758911080099,2.78998267,4064.3,4064.2,0.3274]
[1758911080598,2.78998267,4064.3,4064.2,0.5427]
[1758911080800,2.53398267,4064.3,4064.2,0.5427]
[1758911081094,0.88312,4064.3,4064.2,1.19033]
[1758911081294,1.48206267,4064.4,4064.3,0.4204]
[1758911081295,1.92457267,4064.4,4064.3,0.4204]
[1758911081498,2.18057267,4064.4,4064.3,1.19032]
[1758911081808,2.18057267,4064.4,4064.3,0.7478]
[1758911082097,2.18057267,4064.4,4064.3,1.19032]
[1758911082298,1.92457267,4064.4,4064.3,1.19032]
[1758911082491,2.18057267,4064.4,4064.3,1.19032]
[1758911082687,1.48206267,4064.7,4064.6,1.22018]
[1758911082887,2.18054267,4064.7,4064.6,1.22018]
[1758911084293,2.39304267,4064.7,4064.6,1.22018]
[1758911084698,0.91098,4064.7,4064.6,1.22018]
[1758911084899,0.0246,4064.8,4064.7,0.77538]
[1758911085104,0.2371,4064.8,4064.7,4.42798]
[1758911086005,0.2371,4064.8,4064.7,3.9855]
[1758911086006,0.67956,4064.8,4064.7,3.9855]
[1758911086503,0.67956,4064.8,4064.7,4.42798]
[1758911086697,0.67956,4064.8,4064.7,0.7777]
[1758911086897,1.61611848,4064.8,4064.7,0.3329]
[1758911087101,1.26065848,4064.8,4064.7,1.22018]
[1758911087604,1.23605848,4064.8,4064.7,1.22018]
[1758911087904,1.67851848,4064.8,4064.7,0.7777]
[1758911088201,1.84751848,4064.8,4064.7,0.3329]
[1758911089001,1.67851848,4064.8,4064.7,0.5571]
[1758911089200,1.42251848,4064.8,4064.7,0.7777]
[1758911089398,1.67851848,4064.8,4064.7,0.7777]
[1758911089594,1.67851848,4064.8,4064.7,0.5571]
[1758911089800,1.84751848,4064.8,4064.7,0.3329]
[1758911090393,1.67851848,4064.8,4064.7,0.7777]
[1758911090598,1.67851848,4064.8,4064.7,1.22018]
[1758911090801,1.67851848,4064.8,4064.7,0.7777]
[1758911091004,0.54865848,4064.8,4064.7,1.22018]
[1758911091198,0.54865848,4064.8,4064.7,4.42798]
[1758911091401,0.0019959,4064.9,4064.8,1.22016]
[1758911091604,0.0246,4065.0,4064.8,2.66624407]
[1758911091800,0.0246,4065.0,4064.9,0.7777]
[1758911092717,0.02665801,4065.0,4064.9,0.7777]
[1758911093603,0.45805801,4065.0,4064.9,0.7777]
[1758911093803,0.45805801,4065.0,4064.7,3.2078]
[1758911093804,0.44245,4064.9,4064.7,3.2078]
[1758911094009,0.4314,4064.8,4064.7,3.5407]
[1758911094310,0.8564,4064.8,4064.7,3.2078]
[1758911094716,5.8564,4064.8,4064.7,3.2078]
[1758911095305,7.63538407,4064.8,4064.7,3.2078]
[1758911096210,0.2125,4064.6,4064.3,0.3329]
[1758911096414,0.2125,4064.6,4064.5,0.909]
[1758911096714,0.4685,4064.6,4064.5,0.909]
[1758911097203,0.91099,4064.6,4064.5,0.909]
[1758911097408,1.12989,4064.6,4064.5,0.4642]
[1758911097610,1.12989,4064.6,4064.2,3.2078]
[1758911097611,1.04294,4064.1,4064.0,0.3329]
[1758911097917,0.6874,4064.1,4064.0,0.6884]
[1758911098113,0.4314,4064.1,4064.0,0.909]
[1758911098307,0.6874,4064.1,4064.0,0.909]
[1758911098614,0.6874,4064.1,4063.6,3.2078]
[1758911098615,0.4314,4063.6,4063.5,0.46685794]
[1758911098815,2.46638407,4063.6,4063.5,0.91165794]
[1758911099518,0.5987,4062.7,4062.1,3.2078]
[1758911099710,0.5987,4062.7,4062.6,3.9855]
[1758911099711,2.21038407,4062.7,4062.6,3.9855]
[1758911099905,2.24748407,4062.7,4062.6,3.9855]
[1758911100529,2.24748407,4062.7,4062.6,3.9873517]
[1758911100816,0.4685,4062.7,4062.6,3.9873517]
[1758911101205,0.4685,4062.7,4062.6,0.7795517]
[1758911101608,0.87405,4063.1,4063.0,0.6884]
[1758911101812,0.6551,4063.6,4063.5,0.6884]
[1758911102005,0.9111,4063.6,4063.5,0.6884]
[1758911102210,0.6986,4063.6,4063.5,0.909]
[1758911102409,0.256,4063.6,4063.5,0.909]
[1758911102810,0.44257,4063.9,4063.5,0.5761]
[1758911103012,0.65504,4064.1,4064.0,0.3555]
[1758911103215,0.91104,4064.1,4064.0,0.6884]
[1758911103415,1.46571051,4064.1,4064.0,0.6884]
[1758911103610,0.55467051,4064.1,4064.0,0.909]
[1758911105610,1.02317051,4064.1,4064.0,0.909]
[1758911106322,1.23377051,4064.1,4064.0,0.909]
[1758911106720,1.40077051,4064.1,4064.0,0.3329]
[1758911107323,1.23377051,4064.1,4064.0,0.3329]
[1758911107521,1.23377051,4064.1,4064.0,0.6809]
[1758911107823,0.81067051,4064.1,4064.0,1.34315]
[1758911108029,1.25321051,4064.1,4064.0,1.34315]
[1758911108821,1.67011051,4064.1,4064.0,0.9006]
[1758911109017,1.67011051,4064.1,4064.0,0.6809]
[1758911109220,1.22757051,4064.1,4064.0,0.6809]
[1758911109427,0.55467051,4064.1,4064.0,0.9006]
[1758911109622,0.0246,4064.3,4064.0,0.9006]
[1758911109623,0.0246,4064.3,4064.1,0.44254]
[1758911109926,0.55447549,4064.2,4064.1,1.19004]
[1758911110320,0.0246,4064.3,4064.2,0.7475]
[1758911110628,0.5790623,4064.3,4064.2,0.7475]
[1758911111322,0.0246,4064.3,4064.2,0.7475]
[1758911111924,0.0246,4064.3,4064.2,3.9553]
[1758911112928,0.4585,4064.3,4064.2,0.7475]
[1758911113127,0.57681446,4064.3,4064.2,0.7318]
[1758911113326,0.57681446,4064.3,4064.2,8.9396]
[1758911113628,0.00205801,4065.0,4064.9,1.18605]
[1758911113928,0.5542194,4065.0,4064.9,1.18605]
[1758911114729,0.00205801,4065.0,4064.9,1.18605]
[1758911116032,0.55402873,4065.0,4064.9,0.7436]
[1758911119822,0.00205801,4065.0,4064.9,0.7436]
[1758911120934,0.00205801,4065.0,4064.9,1.18605]
[1758911121933,0.44449801,4065.0,4064.9,1.18605]
[1758911122526,0.99628539,4065.0,4064.9,1.18605]
[1758911122727,0.55384539,4065.0,4064.9,1.18605]
[1758911122932,0.99628539,4065.0,4064.9,1.18605]
[1758911123136,1.43018539,4065.0,4064.9,0.7436]
[1758911124337,1.21808539,4065.0,4064.9,0.7436]
[1758911124542,0.77564539,4065.0,4064.9,1.18605]
[1758911124841,1.21808539,4065.0,4064.9,1.18605]
[1758911125940,0.77564539,4065.0,4064.9,1.18605]
[1758911126138,1.21808539,4065.0,4064.9,1.18605]
[1758911126339,0.77564539,4065.0,4064.9,1.18605]
[1758911126639,0.55384539,4065.0,4064.9,1.18605]
[1758911126831,0.00205801,4065.0,4064.9,1.18605]
[1758911127938,0.00205801,4065.0,4064.9,1.44205]
[1758911128638,0.00205801,4065.0,4064.9,1.18605]
[1758911128835,0.00205801,4065.0,4064.9,1.44205]
[1758911129442,0.00205801,4065.0,4064.9,1.18605]
[1758911129837,0.00205801,4065.0,4064.9,1.44205]
[1758911130141,0.7755725,4065.0,4064.9,1.18605]
[1758911130640,1.4301125,4065.0,4064.9,0.7436]
[1758911131236,1.4301125,4065.0,4064.9,1.18605]
[1758911131435,1.4301125,4065.0,4064.9,0.7436]
[1758911132338,0.44246,4064.8,4064.7,3.527]
[1758911132533,0.55171449,4064.9,4064.7,4.39387]
[1758911132739,0.99416449,4064.9,4064.8,1.18606]
[1758911133136,0.55171449,4064.9,4064.8,1.18606]
[1758911133544,0.77351449,4064.9,4064.8,1.18606]
[1758911133935,1.42806449,4064.9,4064.8,0.7436]
[1758911134246,1.59526449,4064.9,4064.8,0.5396]
[1758911134437,1.42806449,4064.9,4064.8,0.5396]
[1758911136438,1.59526449,4064.9,4064.8,0.3192]
[1758911136633,0.87638,4064.6,4064.5,0.3485]
[1758911136942,1.42809449,4064.6,4064.5,0.3485]
[1758911137144,1.42809449,4064.6,4064.5,0.6677]
[1758911137938,0.55171449,4064.6,4064.5,1.3142]
[1758911138342,1.21599449,4064.6,4064.5,0.8717]
[1758911138641,0.77351449,4064.6,4064.5,1.3142]
[1758911138837,0.55171449,4064.6,4064.5,1.3142]
[1758911139436,0.44247,4064.8,4064.7,1.18607]
[1758911139640,0.55511604,4064.8,4064.7,1.18607]
[1758911139842,0.99757604,4064.8,4064.7,1.18607]
[1758911140346,0.55511604,4064.8,4064.7,1.18607]
[1758911140539,0.99757604,4064.8,4064.7,1.18607]
[1758911140736,0.99757604,4064.8,4064.7,4.39387]
[1758911141138,0.99757604,4064.8,4064.7,4.15165757]
[1758911141442,0.55511604,4064.8,4064.7,4.15165757]
[1758911141644,0.55511604,4064.8,4064.7,4.40765757]
[1758911142342,0.55511604,4064.8,4064.7,3.7504]
[1758911142641,0.55511604,4064.8,4064.7,4.40127]
[1758911142843,0.55511604,4064.8,4064.7,4.65727]
[1758911144545,0.55511604,4064.8,4064.7,4.40127]
[1758911145842,0.55511604,4064.8,4064.7,4.65627]
[1758911149847,0.55511604,4064.8,4064.7,4.40127]
[1758911150047,0.55511604,4064.8,4064.7,4.65627]
[1758911152354,0.00205801,4065.0,4064.9,1.18995]
[1758911152541,0.00205801,4065.0,4064.9,1.44495]
[1758911153744,0.21965801,4065.0,4064.9,1.44495]
[1758911154138,0.00205801,4065.0,4064.9,1.44495]
[1758911154749,0.21965801,4065.0,4064.9,1.44495]
[1758911155153,0.21965801,4065.0,4064.9,1.18995]
[1758911155353,2.23750757,4065.0,4064.9,1.18995]
[1758911155546,2.23750757,4065.0,4064.9,1.44495]
[1758911156551,2.67994757,4065.0,4064.9,0.5391]
[1758911156740,2.67994757,4065.0,4064.7,3.2078]
[1758911156741,0.75496,4064.8,4064.7,3.2078]
[1758911156941,1.19586,4064.8,4064.7,3.2078]
[1758911157254,0.7534,4064.3,4064.2,4.39783]
[1758911157641,0.4409,4064.3,4064.2,4.39783]
[1758911157845,1.92294956,4064.5,4064.4,1.19001]
[1758911158041,2.67794956,4064.5,4064.4,0.7475]
[1758911158246,0.7534,4064.3,4064.2,3.2078]
[1758911158748,5.7534,4064.3,4064.2,3.2078]
[1758911158951,5.7534,4064.3,4063.2,0.75834]
[1758911158952,0.3125,4063.3,4063.2,0.75834]
[1758911159148,2.23544956,4063.3,4063.2,0.98174]
[1758911160347,0.7534,4063.9,4063.8,0.87437]
[1758911160557,0.7534,4063.9,4063.8,1.19007]
[1758911160558,0.4409,4063.9,4063.8,1.19007]
[1758911161746,0.5301,4064.2,4064.1,0.87434]
[1758911161943,3.38234263,4065.0,4064.6,0.3157]
[1758911161944,0.3125,4064.9,4064.6,0.3157]
[1758911162154,2.23544956,4064.9,4064.8,0.98156]
[1758911162455,1.92294956,4064.9,4064.8,1.18996]
[1758911162657,0.00205801,4065.0,4064.8,1.18996]
[1758911162856,0.00205801,4065.0,4064.9,0.7475]
[1758911163652,0.75545801,4065.0,4064.9,0.7475]
[1758911164454,1.30429457,4065.0,4064.9,0.7475]
[1758911164756,0.99179457,4065.0,4064.9,0.7475]
[1758911165056,0.76849457,4065.0,4064.9,0.7475]
[1758911165556,0.99179457,4065.0,4064.9,0.7475]
[1758911167051,0.76849457,4065.0,4064.9,0.7475]
[1758911167247,0.55089457,4065.0,4064.9,0.7475]
[1758911167650,0.76809457,4065.0,4064.9,0.7475]
[1758911167856,0.55089457,4065.0,4064.9,0.7475]
[1758911168059,0.76809457,4065.0,4064.9,0.7475]
[1758911169360,0.99399457,4065.0,4064.9,1.18995]
[1758911170053,0.55089457,4065.0,4064.9,1.44495]
[1758911171659,0.55089457,4065.0,4064.9,1.18995]
[1758911171956,0.55089457,4065.0,4064.9,1.44495]
[1758911174562,0.55089457,4065.0,4064.9,1.18995]
[1758911174861,0.55089457,4065.0,4064.9,1.44495]
[1758911175259,0.55089457,4065.0,4064.9,1.18995]
[1758911175564,0.55089457,4065.0,4064.9,1.44495]
[1758911175764,0.77609457,4065.0,4064.9,1.44495]
[1758911177363,0.22725801,4065.0,4064.9,1.44495]
[1758911178466,0.00205801,4065.0,4064.9,1.44495]
[1758911178763,0.22725801,4065.0,4064.9,1.44495]
[1758911179063,0.78075801,4065.0,4064.9,1.44495]
[1758911179258,0.78075801,4065.0,4064.9,1.18995]
[1758911179459,1.32520933,4065.0,4064.9,1.18995]
[1758911180057,0.98880933,4065.0,4064.9,1.18995]
[1758911180552,1.32520933,4065.0,4064.9,1.18995]
[1758911180956,1.76764933,4065.0,4064.9,0.5391]
[1758911181158,1.22116,4064.9,4064.8,0.65376]
[1758911181465,1.76561132,4064.9,4064.8,0.5355]
[1758911181676,1.22122,4064.3,4064.2,3.4191]
[1758911181858,1.32324996,4064.3,4064.2,0.425]
[1758911182160,1.76576996,4064.3,4064.2,0.7492]
[1758911182357,1.22124,4064.1,4064.0,0.5355]
[1758911182662,1.22124,4064.1,4064.0,0.97805]
[1758911182663,1.32324996,4064.1,4064.0,0.97805]
[1758911182854,0.76974996,4064.1,4064.0,1.31975]
[1758911183254,0.54454996,4064.1,4064.0,1.31975]
[1758911183456,0.44252,4064.3,4064.1,1.19174]
[1758911183457,0.2252,4064.2,4064.1,1.19174]
[1758911183655,0.76970169,4064.2,4064.1,1.19174]
[1758911183861,1.21223169,4064.2,4064.1,1.19174]
[1758911184059,1.76573169,4064.2,4064.1,1.19174]
[1758911184262,1.32320169,4064.2,4064.1,1.19174]
[1758911184656,1.32320169,4064.2,4064.0,0.128]
[1758911184657,0.4423,4064.7,4064.6,0.425]
[1758911184858,0.76959018,4064.7,4064.6,1.19168]
[1758911185057,1.32309018,4064.7,4064.6,1.19168]
[1758911185257,0.76959018,4064.7,4064.6,1.19168]
[1758911185458,0.54439018,4064.7,4064.6,2.67432617]
[1758911185862,0.00205801,4065.0,4064.9,1.19165]
[1758911186055,0.5463709,4065.0,4064.9,1.19165]
[1758911188962,0.7715709,4065.0,4064.9,1.19165]
[1758911191068,0.5463709,4065.0,4064.9,1.19165]
[1758911194674,0.7715709,4065.0,4064.9,1.19165]
[1758911195561,1.3250709,4065.0,4064.8,3.2078]
[1758911195768,1.2212,4064.4,4064.3,3.2078]
[1758911195970,1.32301289,4064.4,4064.3,4.18581]
[1758911196273,1.32301289,4064.4,4064.3,3.7433]
[1758911196767,1.76551289,4064.4,4064.3,0.5355]
[1758911197573,1.76551289,4064.4,4064.3,0.7492]
[1758911198472,1.76551289,4064.4,4064.3,1.19171]
[1758911198974,1.76551289,4064.4,4064.3,0.5355]
[1758911199372,1.32301289,4064.4,4064.3,0.65381]
[1758911199570,1.32301289,4064.4,4064.3,1.19171]
[1758911199780,1.32301289,4064.4,4064.3,1.52862271]
[1758911200772,0.98661289,4064.4,4064.3,1.52862271]
[1758911201375,1.32301289,4064.4,4064.3,1.52862271]
[1758911202273,2.80565906,4064.4,4064.3,1.52862271]
[1758911202578,2.46925906,4064.4,4064.3,1.52862271]
[1758911203379,2.77905906,4064.4,4064.3,1.52862271]
[1758911203781,0.54431289,4064.4,4064.3,4.73642271]
[1758911204074,0.00205801,4065.0,4064.9,1.19305]
[1758911204476,0.55009302,4065.0,4064.9,1.19305]
[1758911204883,0.55009302,4065.0,4064.9,1.52996271]
[1758911205382,0.76459302,4065.0,4064.9,1.52996271]
[1758911205591,0.98769302,4065.0,4064.9,1.52996271]
[1758911205777,1.29749302,4065.0,4064.9,1.52996271]
[1758911205973,3.64645892,4065.0,4064.9,0.77936271]
[1758911206284,3.90145892,4065.0,4064.9,0.33691271]
[1758911207082,3.90145892,4065.0,4064.9,0.77936271]
[1758911207583,3.90145892,4065.0,4064.9,0.33691271]
[1758911207778,8.90145892,4065.0,4064.9,0.33691271]
[1758911208982,8.90145892,4065.0,4064.9,0.31096814]
[1758911209172,0.1955,4064.1,4063.8,3.2078]
[1758911209370,2.2208859,4063.9,4063.7,0.75847]
[1758911209576,1.62370501,4063.8,4063.7,0.3159]
[1758911210488,0.98563501,4063.8,4063.7,0.5299]
[1758911210779,0.98563501,4063.8,4063.7,0.7506]
[1758911211085,0.98563501,4063.8,4063.2,0.44263]
[1758911211086,0.6331,4063.6,4063.2,0.44263]
[1758911211277,0.4376,4063.1,4063.0,0.78795]
[1758911211476,0.98563501,4063.1,4063.0,0.78795]
[1758911211783,0.6331,4062.7,4062.6,0.3177517]
[1758911212083,3.21446091,4062.7,4062.6,0.3177517]
[1758911212280,3.21446091,4062.7,4062.6,0.9744517]
[1758911212585,1.24063501,4062.7,4062.6,0.9744517]
[1758911213088,1.24063501,4062.7,4062.6,0.3177517]
[1758911213282,1.43613501,4062.7,4062.6,0.0018517]
[1758911213584,1.43613501,4062.7,4062.6,0.3177517]
[1758911213978,1.43613501,4062.7,4062.6,0.0018517]
[1758911214675,1.43613501,4062.7,4062.6,0.3177517]
[1758911215074,1.43613501,4062.7,4062.6,0.0018517]
[1758911216377,0.98563501,4062.7,4062.6,0.5317517]
[1758911216885,0.255,4062.7,4062.6,0.7524517]
[1758911217286,0.6926,4062.7,4062.6,0.7524517]
[1758911219084,0.8881,4062.7,4062.6,0.3177517]
[1758911219290,1.33079,4062.7,4062.6,0.0018517]
[1758911219678,1.87650436,4062.7,4062.6,0.0018517]
[1758911219879,6.87650436,4062.7,4062.6,0.0018517]
[1758911220279,0.88043,4061.4,4061.0,0.4407]
[1758911220487,1.07409,4060.9,4060.8,3.2078]
[1758911220677,1.07409,4060.9,4060.5,0.6547]
[1758911220678,0.4376,4060.6,4060.5,0.6547]
[1758911220984,0.8862,4060.6,4060.5,0.3159]
[1758911221190,0.1936,4060.5,4060.3,0.3159]
[1758911221492,1.07414,4060.4,4060.3,0.31838001]
[1758911221692,4.28194,4060.4,4060.3,0.00248001]
[1758911221890,4.3843874,4060.4,4060.3,0.00248001]
[1758911222396,4.6393874,4060.4,4060.3,0.00248001]
[1758911224092,0.4376,4059.4,4059.3,0.3159]
[1758911224283,0.6926,4059.4,4059.3,0.3159]
[1758911224687,0.6926,4059.4,4059.3,0.7506]
[1758911225193,0.6926,4059.4,4059.3,0.75292357]
[1758911225393,0.8837,4059.4,4059.3,0.00232357]
[1758911226688,4.0915,4059.4,4059.3,0.00232357]
[1758911226888,0.44306,4059.3,4058.5,0.3363]
[1758911227097,1.05524,4058.6,4058.5,0.3363]
[1758911227292,0.44319,4058.2,4058.0,0.4611]
[1758911227493,6.02122458,4058.1,4057.9,0.36094359]
[1758911227801,0.255,4058.1,4058.0,0.472]
[1758911227997,0.255,4058.1,4058.0,0.91727683]
[1758911228293,0.1898,4059.4,4059.0,0.1357]
[1758911228595,6.20924458,4059.7,4059.3,0.3363]
[1758911228784,0.255,4059.6,4059.2,0.44307]
[1758911228988,2.5348,4059.6,4059.3,0.77936]
[1758911229198,2.97783,4059.6,4059.4,0.3363]
[1758911229398,2.5348,4059.6,4059.0,0.1357]
[1758911229691,3.2078,4060.0,4059.6,0.3363]
[1758911229999,0.255,4059.9,4059.6,0.3363]
[1758911230196,0.44302,4059.7,4059.6,0.3363]
[1758911230398,3.2078,4060.0,4059.6,0.44302]
[1758911230589,0.255,4059.9,4059.6,0.44302]
[1758911230791,0.255,4059.9,4059.8,0.3363]
[1758911231287,0.255,4059.9,4059.0,0.472]
[1758911231288,0.44307,4059.2,4059.0,0.472]
[1758911231488,0.255,4059.1,4059.0,0.472]
[1758911231689,0.255,4059.1,4059.0,0.3363]
[1758911231996,0.255,4059.1,4059.0,0.472]
[1758911232593,0.446,4059.1,4058.9,0.3373]
[1758911232788,0.446,4059.1,4057.7,1.10809]
[1758911232789,0.44313,4058.7,4058.6,0.3373]
[1758911232993,3.2078,4059.5,4059.0,0.3373]
[1758911233197,0.44307,4059.2,4059.1,0.3373]
[1758911233493,0.191,4059.2,4058.1,3.2078]
[1758911233698,0.191,4058.9,4058.1,3.2078]
[1758911233900,0.69812,4058.8,4058.6,0.3373]
[1758911234101,1.10785,4058.6,4058.1,0.3373]
[1758911234288,8.97402458,4059.0,4058.1,0.3373]
[1758911234489,0.44312,4058.8,4058.5,3.3429]
[1758911234696,0.191,4059.4,4058.8,0.3373]
[1758911234897,0.44307,4059.2,4059.1,0.3373]
[1758911235100,0.69807,4059.2,4059.1,0.3373]
[1758911235613,0.44311,4058.8,4058.7,0.3373]
[1758911235792,3.90591,4058.8,4058.7,0.3373]
[1758911236400,0.44314,4058.6,4058.5,0.4724]
[1758911236600,0.69814,4058.6,4058.5,0.4724]
[1758911236898,3.2078,4058.8,4058.6,0.3373]
[1758911237103,0.255,4058.7,4058.6,0.3373]
[1758911238299,0.44317,4058.3,4058.2,0.3373]
[1758911238501,0.69817,4058.3,4058.2,0.3373]
[1758911238802,0.44319,4058.1,4058.0,0.47507683]
[1758911239106,0.63419,4058.1,4058.0,0.00207683]
[1758911239302,1.17722175,4058.1,4058.0,0.00207683]
[1758911239704,6.17722175,4058.1,4058.0,0.00207683]
[1758911240005,16.12722175,4058.1,4058.0,0.00207683]
[1758911241196,0.2579,4058.0,4057.9,0.02464359]
[1758911241506,0.2579,4058.0,4056.6,0.3373]
[1758911241507,6.20948458,4057.5,4056.6,0.3373]
[1758911241700,1.24130175,4057.4,4057.2,0.3373]
[1758911241899,0.54303175,4057.3,4057.1,0.7806]
[1758911242096,0.54580782,4057.3,4057.2,0.3373]
[1758911242404,0.80080782,4057.3,4057.2,0.3373]
[1758911243402,0.54580782,4057.3,4057.2,0.3373]
[1758911243605,0.60959,4057.2,4057.1,0.00198877]
[1758911243800,0.98632175,4057.2,4057.1,0.33928877]
[1758911244002,0.79803175,4057.2,4057.1,0.33928877]
[1758911244507,0.54303175,4057.2,4057.1,0.33928877]
[1758911244704,0.79803175,4057.2,4057.1,0.33928877]
[1758911244896,0.54303175,4057.2,4057.1,0.33928877]
[1758911246511,0.54303175,4057.2,4057.1,0.78258877]
[1758911247205,0.54303175,4057.2,4057.1,5.78258877]
[1758911248102,0.54303175,4057.2,4057.1,0.78258877]
[1758911248506,0.98632175,4057.2,4057.1,0.78258877]
[1758911248705,0.54303175,4057.2,4057.1,0.78258877]
[1758911248901,0.98632175,4057.2,4057.1,0.33928877]
[1758911249103,1.15262175,4057.2,4057.1,0.00198877]
[1758911249409,0.44335,4056.6,4056.5,0.4724]
[1758911249609,0.98638175,4056.6,4056.5,0.4724]
[1758911249908,0.54303175,4056.6,4056.5,4.12356]
[1758911250311,0.00277607,4057.3,4057.0,0.1351]
[1758911250615,0.52982115,4057.2,4057.1,0.7806]
[1758911250811,0.52982115,4057.2,4057.1,3.9884]
[1758911252011,0.97311115,4057.2,4057.1,0.3373]
[1758911252215,0.97311115,4057.2,4057.1,0.09705593]
[1758911252508,0.84912115,4057.2,4056.7,0.44334]
[1758911252712,0.3193,4056.9,4056.6,3.2078]
[1758911253009,0.52982115,4056.8,4056.7,0.44334]
[1758911253208,0.78482115,4056.8,4056.7,0.44334]
[1758911254309,0.52982115,4056.8,4056.7,5.78064]
[1758911254611,0.52982115,4056.8,4056.7,0.78064]